Cogmind - Beta 10.2 @@@ ROGUE MODE // 2021.06.25 @ 20:08:18 Player: Plexion Result: Destroyed by P1-3CE with P1-3CE's Gatling Flakker Performance ------------- Evolutions (1) 500 Regions Visited (6) 1200 Robots Destroyed (46) 230 Value Destroyed (827) 827 Prototype IDs (26) 520 Alien Tech Used (0) 0 Bonus (316) 316 TOTAL SCORE: 3593 Bonus ------- Follower Combat Kills 25 Aligned with FarCom 300 Friendly Fire -9 Cogmind --------- Core Integrity 0/400 Matter 146/300 Energy 170/170 System Corruption 0% Temperature Cool (0) Movement Treading (180) Ox1 Location -8/Mines Parts ------- > --- POWER (1) -------- Makeshift Power Source > --- PROPULSION (2) --- Improved Treads > --- UTILITY (4) ------ Medium Storage Unit Large Storage Unit Large Storage Unit > --- WEAPON (2) ------- (None) > --- INVENTORY (20) --- Flying Fortress v7 Experimental Heat Sink Gravity Neutralizing Apparatus Advanced Weapon Cycler System Purifier YOLO Cannon Light Assault Rifle Light Assault Rifle XL Autogun Array Mini Grenade Launcher Mini Grenade Launcher Peak State ------------ > --- POWER ------------ Light Ion Engine > --- PROPULSION ------- Improved Treads Improved Treads > --- UTILITY ---------- Medium Storage Unit Large Storage Unit Large Storage Unit System Purifier > --- WEAPON ----------- Heavy Assault Rifle Autogun > --- INVENTORY -------- Improved Treads Flying Fortress v7 Experimental Heat Sink Gravity Neutralizing Apparatus Advanced Weapon Cycler Light Armor Plating Medium Armor Plating YOLO Cannon Light Assault Rifle Light Assault Rifle XL Autogun Array Mini Grenade Launcher Mini Grenade Launcher [Rating: 33] Favorites ----------- Power Improved Ion Engine Engine Improved Ion Engine Propulsion Improved Treads Treads Improved Treads Utility Large Storage Unit Device Advanced Weapon Cycler Storage Large Storage Unit Processor Armor Integrity Analyzer Protection Light Armor Plating Weapon Heavy Assault Rifle Energy Gun Small Laser Ballistic Gun Heavy Assault Rifle Ballistic Cannon Improved Light Cannon Launcher Mini Grenade Launcher Build | -11 -10 -10 -9 -9 -9 -8 ------- Run | Scr Mat Min Mat Min Exi Min Slots Evolved 2 | . . . 2 . . . Power . | . . . . . . . Propulsion . | . . . . . . . Utility 2 | . . . 2 . . . Weapon . | . . . . . . . Parts Attached 56 | 6 4 3 8 7 25 3 Power 7 | 1 . 1 2 . 3 . Engine 7 | 1 . 1 2 . 3 . Core . | . . . . . . . Reactor . | . . . . . . . Propulsion 8 | 2 . . 3 1 1 1 Treads 8 | 2 . . 3 1 1 1 Leg . | . . . . . . . Wheel . | . . . . . . . Hover . | . . . . . . . Flight . | . . . . . . . Utility 21 | 1 2 . 3 1 14 . Device 5 | . . . . . 5 . Storage 7 | 1 2 . 1 . 3 . Processor 1 | . . . . . 1 . Hackware . | . . . . . . . Protection 8 | . . . 2 1 5 . Artifact . | . . . . . . . Weapon 20 | 2 2 2 . 5 7 2 Energy Gun 2 | 1 1 . . . . . Energy Cannon . | . . . . . . . Ballistic Gun 9 | 1 . 2 . . 5 1 Ballistic Cannon 3 | . . . . 3 . . Launcher 6 | . 1 . . 2 2 1 Special Weapon . | . . . . . . . Impact Weapon . | . . . . . . . Slashing Weapon . | . . . . . . . Piercing Weapon . | . . . . . . . Special Melee Weapon . | . . . . . . . Unidentified Prototypes 3 | . . . . . 3 . Parts Lost 15 | . . . 2 5 3 5 Power 1 | . . . . . 1 . Propulsion 5 | . . . 1 2 . 2 Utility 5 | . . . 1 2 1 1 Weapon 4 | . . . . 1 1 2 Highest Loss Streak 5 | . . . 1 5 3 5 Average Slot Usage (%) 98 | . 94 100 99 95 99 93 Engine 11 | . 14 14 11 11 11 11 Treads 23 | . 28 28 21 19 22 19 Storage 30 | . 22 28 33 33 31 33 Protection 7 | . . . 11 8 9 8 Energy Gun 2 | . 13 1 . . . . Ballistic Gun 19 | . 14 26 22 15 20 19 Launcher 1 | . . . . 2 1 . Naked Turns . | . . . . . . . Heaviest Build 57 | 10 38 45 56 56 57 53 Greatest Support 46 | 40 40 40 43 43 46 46 Greatest Overweight (x) 2 | . . 1 2 2 1 2 Average Overweight (x) . | . . . 1 1 . 1 Largest Inventory Capacity 20 | 6 16 16 20 20 20 20 Average Capacity 17 | 5 12 16 19 20 19 20 Most Carried 20 | 2 16 16 20 19 20 20 Average Carried 15 | . 10 15 17 18 16 19 Final Capacity 20 | 6 16 16 20 20 20 20 Final Carried 20 | 2 16 16 19 17 20 18 Class Distribution -------------------- 66% | Hauler-Mutant 32% | Mutant Dominant Class ---------------- Mutant | -10/Materials Mutant | -10/Mines Hauler-Mutant | -9/Materials Hauler-Mutant | -9/Mines Hauler-Mutant | -9/Exiles Hauler-Mutant | -8/Mines Resources | -11 -10 -10 -9 -9 -9 -8 ----------- Run | Scr Mat Min Mat Min Exi Min Matter Collected 1838 | 225 152 98 278 105 980 . Remotely . | . . . . . . . Salvage Created 1454 | . 263 71 585 54 477 4 Parts 126 | . 25 1 37 5 56 2 Haulers Intercepted 3 | . 1 . 2 . . . Recyclers Shooed 1 | . . 1 . . . . Parts Field Recycled . | . . . . . . . Retrieved Matter . | . . . . . . . Parts Self-Destructed . | . . . . . . . Prevented . | . . . . . . . Kills | -11 -10 -10 -9 -9 -9 -8 ------- Run | Scr Mat Min Mat Min Exi Min Combat Hostiles Destroyed 37 | . 11 2 11 7 3 3 Guns 23 | . 8 2 11 . 2 . Cannons 1 | . . . . 1 . . AOE 13 | . 3 . . 6 1 3 Classes Destroyed 11 | . 4 . 1 4 2 . Worker 2 | . 1 1 . . . . Builder 1 | . . . . 1 . . Tunneler 1 | . . . . 1 . . Hauler 3 | . 1 . 2 . . . Turret 1 | . . . . . 1 . Swarmer 15 | . 9 . 3 . . 3 Grunt 6 | . 2 2 2 . . . Sentry 6 | . . . 6 . . . Demolisher 1 | . . . . 1 . . Zionite 7 | . . . . . 7 . Assembled 8 | . . . . 6 2 . Best Kill Streak 8 | . 8 2 4 8 7 3 Combat Bots Only 8 | . 8 2 3 5 1 3 Max Kills in Single Turn 2 | . 2 1 1 2 1 1 Gunslinging . | . . . . . . . Exploded 2 | . 2 . . 2 1 1 Melee . | . . . . . . . Uniques/NPCs Destroyed 4 | . . . . . 4 . 8R-AWN (-9/Exiles) EX-HEX (-9/Exiles) EX-DEC (-9/Exiles) EX-BIN (-9/Exiles) Combat | -11 -10 -10 -9 -9 -9 -8 -------- Run | Scr Mat Min Mat Min Exi Min Damage Taken 3276 | . 270 84 751 720 630 821 Core 450 | . 45 . 46 53 30 276 Absorbed by Shields . | . . . . . . . Core Remaining (%) 91 | 100 . 82 . . . . Volleys Fired 187 | . 27 9 45 17 85 4 Largest 2 | . 2 2 2 2 2 2 Hottest 78 | . 60 46 46 78 46 46 Shots Fired 343 | . 51 18 90 29 150 5 Gun 298 | . 48 18 90 8 132 2 Cannon 16 | . . . . 16 . . Launcher 29 | . 3 . . 5 18 3 Special . | . . . . . . . Kinetic 290 | . 24 18 90 24 132 2 Thermal 24 | . 24 . . . . . Explosive 29 | . 3 . . 5 18 3 Electromagnetic . | . . . . . . . Robot Hit Streak 20 | . 8 7 20 4 11 . Robot Miss Streak 4 | . 3 2 3 4 3 3 Penetration Max . | . . . . . . . Secondary Targets . | . . . . . . . Shots Hit Robots 215 | . 32 12 68 14 89 . Core Hits 106 | . 16 3 22 15 46 4 Critical Hits . | . . . . . . . Critical Kills . | . . . . . . . Critical Parts Destroyed . | . . . . . . . Melee Attacks . | . . . . . . . Impact . | . . . . . . . Slashing . | . . . . . . . Piercing . | . . . . . . . Sneak Attacks . | . . . . . . . Combat Hostiles . | . . . . . . . Follow-up Attacks . | . . . . . . . Damage Inflicted 4618 | . 517 350 1048 589 1814 300 Guns 3013 | . 353 218 1048 40 1345 9 Cannons 137 | . . . . 137 . . Explosions 1457 | . 164 121 . 412 469 291 Melee . | . . . . . . . Ramming 11 | . . 11 . . . . Kinetic 2932 | . 135 218 1048 177 1345 9 Thermal 339 | . 218 121 . . . . Explosive 1336 | . 164 . . 412 469 291 Electromagnetic . | . . . . . . . Impact . | . . . . . . . Slashing . | . . . . . . . Piercing . | . . . . . . . Highest Corruption 1 | . 1 1 . . . . Average Corruption 1 | . 1 1 . . . . Corruption Purged . | . . . . . . . Effects 6 | . 2 4 . . . . Message Errors 3 | . 1 2 . . . . Energy Discharges 1 | . . 1 . . . . Data Loss (minor) 2 | . 1 1 . . . . Overload Shots . | . . . . . . . Overflow Damage 50 | . . 15 . 4 7 24 Projectiles . | . . . . . . . Explosions 50 | . . 15 . 4 7 24 Melee . | . . . . . . . Knockbacks 1 | . . . . 1 . . Impact . | . . . . . . . Kinetic 1 | . . . . 1 . . Secondary . | . . . . . . . Self-Inflicted Damage 133 | . 20 . . 106 . 7 Shots 5 | . 1 . . 3 . 1 Rammed 1 | . . 1 . . . . Targets Rammed 2 | . . 2 . . . . Kicked . | . . . . . . . Crushed 1 | . . 1 . . . . Highest Temperature 168 | . 42 8 6 168 24 10 Average Temperature 20 | . 23 4 2 86 7 7 Received Heat Transfer 469 | . 42 51 276 80 20 . Siege Activations . | . . . . . . . Robots Corrupted . | . . . . . . . Combat Hostiles . | . . . . . . . Parts Fried . | . . . . . . . Impact Corruptions . | . . . . . . . Robots Melted . | . . . . . . . Combat Hostiles . | . . . . . . . Parts Melted . | . . . . . . . Heat Transferred 625 | . 475 150 . . . . Parts Sabotaged . | . . . . . . . Parts Stolen . | . . . . . . . Parts Stripped . | . . . . . . . Power Chain Reactions . | . . . . . . . Missiles Intercepted . | . . . . . . . Alert | -11 -10 -10 -9 -9 -9 -8 ------- Run | Scr Mat Min Mat Min Exi Min Peak Influence 255 | . 255 95 217 137 . 88 Initial 76 | . . 40 1 76 . . Average 77 | . 115 25 87 77 . 77 Maximum Alert Level 1 | . 1 . 1 . . . Low Security (%) 90 | 100 73 100 94 100 . 100 Level 1 9 | . 26 . 5 . . . Level 2 . | . . . . . . . Level 3 . | . . . . . . . Level 4 . | . . . . . . . Level 5 . | . . . . . . . High Security . | . . . . . . . Max Security . | . . . . . . . Squads Dispatched 1 | . . . 1 . . . Investigation . | . . . . . . . Extermination . | . . . . . . . Reinforcement 1 | . . . 1 . . . Assault . | . . . . . . . Garrison . | . . . . . . . Intercept . | . . . . . . . Construction Impeded . | . . . . . . . Haulers Reinforced . | . . . . . . . Stealth | -11 -10 -10 -9 -9 -9 -8 --------- Run | Scr Mat Min Mat Min Exi Min Distress Signals 1 | . . . 1 . . . Communications Jammed . | . . . . . . . Distress Signals . | . . . . . . . Times Spotted 92 | . 14 3 20 18 33 4 Peak Tracking Total 10 | . 7 2 4 10 9 4 Tactical Retreats 10 | . . . . 1 9 . Traps | -11 -10 -10 -9 -9 -9 -8 ------- Run | Scr Mat Min Mat Min Exi Min Traps Triggered 1 | . 1 . . . . . Indirectly . | . . . . . . . Trap Hack Attempts . | . . . . . . . Triggered . | . . . . . . . Disarmed . | . . . . . . . Reprogrammed . | . . . . . . . Reused . | . . . . . . . Traps Extracted . | . . . . . . . Installed . | . . . . . . . Triggered . | . . . . . . . Exploded 3 | . . . . . 3 . Machines | -11 -10 -10 -9 -9 -9 -8 ---------- Run | Scr Mat Min Mat Min Exi Min Machines Disabled 15 | . . 1 . 2 12 . Max in Single Turn 2 | . . 1 . 1 2 . Machines Sabotaged . | . . . . . . . Garrisons Compromised . | . . . . . . . Overloaded Fab Kills . | . . . . . . . Fab Network Shutdowns . | . . . . . . . Hacking | -11 -10 -10 -9 -9 -9 -8 --------- Run | Scr Mat Min Mat Min Exi Min Machines Accessed 7 | . 4 . 1 . 2 . Terminals 5 | . 4 . 1 . . . Fabricators . | . . . . . . . Repair Stations . | . . . . . . . Recycling Units . | . . . . . . . Scanalyzers . | . . . . . . . Garrison Access . | . . . . . . . Total Hacks 22 | . 17 . 3 . 2 . Successful 10 | . 7 . 1 . 2 . Failed 12 | . 10 . 2 . . . Catastrophic 1 | . 1 . . . . . Database Lockouts . | . . . . . . . Manual 21 | . 17 . 3 . 1 . Terminals 20 | . 17 . 3 . . . Fabricators . | . . . . . . . Repair Stations . | . . . . . . . Recycling Units . | . . . . . . . Scanalyzers . | . . . . . . . Garrison Access . | . . . . . . . Terminal Hacks 5 | . 3 . . . 2 . Record 1 | . . . . . 1 . Robot Analysis 1 | . 1 . . . . . Zone Layout 2 | . 2 . . . . . EX-Prototype ID Bank 1 | . . . . . 1 . Fabricator Hacks . | . . . . . . . Repair Station Hacks . | . . . . . . . Recycling Unit Hacks . | . . . . . . . Scanalyzer . | . . . . . . . Garrison Access Hacks . | . . . . . . . Unauthorized Hacks 5 | . 4 . 1 . . . Terminals 5 | . 4 . 1 . . . Track 3 | . 2 . 1 . . . Assimilate 1 | . 1 . . . . . Operators 1 | . 1 . . . . . Fabricators . | . . . . . . . Repair Stations . | . . . . . . . Recycling Units . | . . . . . . . Scanalyzers . | . . . . . . . Garrison Access . | . . . . . . . Data Cores Recovered . | . . . . . . . Used . | . . . . . . . Hacking Detections 5 | . 4 . 1 . . . Full Trace Events . | . . . . . . . Feedback Events . | . . . . . . . Feedback Blocked . | . . . . . . . Robot Schematics Acquired . | . . . . . . . Robots Built . | . . . . . . . Matter . | . . . . . . . Time . | . . . . . . . Total Robot Build Rating . | . . . . . . . Part Schematics Acquired . | . . . . . . . Parts Built . | . . . . . . . Matter . | . . . . . . . Time . | . . . . . . . Total Part Build Rating . | . . . . . . . Parts Repaired . | . . . . . . . Time . | . . . . . . . Parts Recycled . | . . . . . . . Recycled Matter . | . . . . . . . Retrieved Matter . | . . . . . . . Retrieved Components . | . . . . . . . Parts Scanalyzed . | . . . . . . . Part Schematics Acquired . | . . . . . . . Parts Damaged . | . . . . . . . Bothacking | -11 -10 -10 -9 -9 -9 -8 ------------ Run | Scr Mat Min Mat Min Exi Min Used RIF Installer . | . . . . . . . Robots Hacked . | . . . . . . . Non-combat . | . . . . . . . Combat . | . . . . . . . Robot Hacks Applied . | . . . . . . . Relay Couplers Released . | . . . . . . . Robots Rewired . | . . . . . . . Allies Hacked . | . . . . . . . Hacks Repelled . | . . . . . . . Allies | -11 -10 -10 -9 -9 -9 -8 -------- Run | Scr Mat Min Mat Min Exi Min Total Allies 2 | . 1 . . 1 . . Largest Group 1 | . 1 1 . 1 . . Highest-Rated Group 31 | . 10 10 . 31 . . Highest-Rated Ally 31 | . 10 10 . 31 . . Total Orders . | . . . . . . . Ally Attacks 9 | . . . . 9 . . Total Damage 105 | . . . . 105 . . Kills 1 | . . . . 1 . . Allies Corrupted . | . . . . . . . Allies Melted . | . . . . . . . Turrets Deployed 1 | . . . . . . 1 Intel | -11 -10 -10 -9 -9 -9 -8 ------- Run | Scr Mat Min Mat Min Exi Min Robot Analysis Total 1 | . 1 . . . . . Derelict Logs Recovered 3 | . . 2 . 1 . . Drone Launches . | . . . . . . . Drone Recoveries . | . . . . . . . Exploration | -11 -10 -10 -9 -9 -9 -8 ------------- Run | Scr Mat Min Mat Min Exi Min Turns Passed 5559 | 67 855 683 911 467 2527 49 Spaces Moved 2721 | 38 464 360 400 221 1232 6 Core 3 | 3 . . . . . . Treads 2718 | 35 464 360 400 221 1232 6 Legs . | . . . . . . . Wheels . | . . . . . . . Hover . | . . . . . . . Flight . | . . . . . . . Fastest Speed 50 | 50 160 160 180 180 160 180 Average Speed 175 | 151 160 178 180 184 178 190 Slowest Speed 200 | 160 160 180 200 200 180 200 Overloaded Moves . | . . . . . . . Propulsion Burnouts . | . . . . . . . Robots Hopped . | . . . . . . . Cave-ins Triggered . | . . . . . . . Exploration Rate (%) 51 | 3 79 87 53 45 89 3 Regions Visited 6 Branch Regions 4 Pre-discovered Areas 2 | . . 1 . . 1 . Known Exits Taken . | . . . . . . . Unknown Exits Taken 6 | 1 1 1 1 1 1 . Scrap Searched 1 | . . 1 . . . . Spaces Dug 10 | . . . . . . 10 Terrain Destroyed 117 | . 20 16 . 31 20 30 Melee . | . . . . . . . Projectile 3 | . . . . 3 . . AOE 114 | . 20 16 . 28 20 30 Terrain Rammed . | . . . . . . . Walls Destroyed . | . . . . . . . Machines Disabled . | . . . . . . . Actions | -11 -10 -10 -9 -9 -9 -8 --------- Run | Scr Mat Min Mat Min Exi Min Total 3187 | 45 527 385 501 250 1441 38 Wait 135 | . 8 4 36 5 58 24 Move 2715 | 37 463 359 399 220 1231 6 Hop . | . . . . . . . Pick Up 47 | 2 19 3 8 1 14 . Fast Attach 14 | 6 1 . . . 7 . Attach 17 | . . . 4 3 9 1 Detach 7 | . . . . . 7 . Swap 25 | . 3 3 4 4 9 2 Drop 38 | . 6 5 5 . 21 1 Fire 187 | . 27 9 45 17 85 4 Melee . | . . . . . . . Ram . | . . . . . . . Kick . | . . . . . . . Crush 2 | . . 2 . . . . Escape Stasis . | . . . . . . . Rewire . | . . . . . . . Trap . | . . . . . . . Miscellaneous . | . . . . . . . Route ------- -11/Scrapyard -10/Materials (discovered 3 exits: *Mat x2 / [*Min]) -10/Mines (discovered 2 exits: *Mat x2) -9/Materials (discovered 4 exits: [*Mat x2] / [*Min x2]) -9/Mines (discovered 2 exits: [*Mat] / *Exi) -9/Exiles -8/Mines History --------- Turn | Location | Event 17 | -11/Scrapyard | Discovered new exit (range 15) 68 | -11/Scrapyard | Entered Materials 234 | -10/Materials | Discovered new exit (range 8) 282 | -10/Materials | Discovered new exit (range 15) 316 | -10/Materials | Build established: Mutant 542 | -10/Materials | Destroyed 8 combat bots 717 | -10/Materials | Discovered new exit (range 4) 923 | -10/Materials | Entered Mines 923 | -10/Mines | Accompanied by 1 ally 963 | -10/Mines | Joined a pair of Derelicts in attacking an 0b10 outpost 1249 | -10/Mines | Discovered new exit (range 9) 1439 | -10/Mines | Learned Materials garrison access intel 1536 | -10/Mines | Found a hidden stash of uninstalled traps 1594 | -10/Mines | Discovered new exit (range 8) 1606 | -10/Mines | Entered Materials 1606 | -9/Materials | Evolved 2 slots: Utility x2 1927 | -9/Materials | Build established: Hauler-Mutant 1943 | -9/Materials | Discovered new exit (range 15) 2151 | -9/Materials | Discovered new exit (range 7) 2207 | -9/Materials | Discovered new exit (range 3) 2506 | -9/Materials | Discovered new exit (range 7) 2517 | -9/Materials | Entered Mines 2521 | -9/Mines | Met a Derelict bent on vengeance 2654 | -9/Mines | Deemed a non-threat by the Exiles lab entrance 2709 | -9/Mines | Received a Mining Laser from a helpful Derelict 2809 | -9/Mines | Discovered new exit (range 10) 2828 | -9/Mines | Assembled infested the area 2833 | -9/Mines | Assisted by a Guerilla fighting off Assembled 2913 | -9/Mines | Lost 5 parts (2n2u1w) 2976 | -9/Mines | Discovered new exit (range 5) 2984 | -9/Mines | Entered Exiles 3034 | -9/Exiles | Met 8R-AWN 3063 | -9/Exiles | Met EX-HEX 3171 | -9/Exiles | Met EX-DEC 3204 | -9/Exiles | Learned location of Zion (-7) 3324 | -9/Exiles | Met EX-BIN 3427 | -9/Exiles | Aligned with FarCom system 3429 | -9/Exiles | Given EX-Vault access code 3472 | -9/Exiles | Opened EX-Vault 3492 | -9/Exiles | Found XL Autogun Array 3534 | -9/Exiles | Warned to stay clear of 0b10 Research branches 3655 | -9/Exiles | Discovered new exit (range 14) 3810 | -9/Exiles | Found YOLO Cannon 3817 | -9/Exiles | Found Flying Fortress v7 4452 | -9/Exiles | Attacked by the Exiles 4589 | -9/Exiles | Lost 3 parts (1p1u1w) 4589 | -9/Exiles | Destroyed 8R-AWN 5025 | -9/Exiles | Destroyed EX-HEX 5083 | -9/Exiles | Destroyed EX-DEC 5131 | -9/Exiles | Destroyed EX-BIN 5180 | -9/Exiles | Found Prototype Device 5180 | -9/Exiles | Identified System Purifier 5240 | -9/Exiles | Found Deploy-a-Sentry 5511 | -9/Exiles | Stole four prototypes: Flying Fortress v7, YOLO Cannon, XL Autogun Array, Deploy-a-Sentry 5511 | -9/Exiles | Entered Mines 5526 | -8/Mines | DAS Turret deployed 5548 | -8/Mines | P1-3CE came to Exiles' defense 5554 | -8/Mines | Core integrity fell below 50% 5559 | -8/Mines | Core integrity fell below 20% 5560 | -8/Mines | Destroyed by P1-3CE with P1-3CE's Gatling Flakker Last Messages --------------- 05269_ Dropped Mak. Power Source. 05290_ Acquired 15 matter. A strange signal echoes through the mines. LOCATION=UNKNOWN GOAL=ESCAPE 05513_ Destroyed Lgt. Ion Engine. 05513_ S-10 Pest destroyed. 05517_ Destroyed Lgt. Assault Rifle. 05517_ S-10 Pest destroyed. 05524_ The unstable cave ceiling collapses. 05524_ Dropped Deploy-a-Sentry. 05526_ DAS Turret deployed. 05528_ The unstable cave ceiling collapses. 05548_ P1-3CE: "I came as fast as I could... Wait, it was you!" 05549_ The unstable cave ceiling collapses. 05550_ Imp. Treads destroyed. 05553_ The unstable cave ceiling collapses. 05558_ Hvy. Assault Rifle destroyed. 05558_ Lgt. Armor Plating destroyed. 05560_ Autogun destroyed. Map ----- +----------------------------------------------------+ | ?????????????????????????????????? | | ?????????????????????????????????? | | ?????????????????????????????????? | | ?????????????????????????????????? | | ?????????????????????????????????? | | ?????????????????????????????????? | | ?????????????????????????????????? | | ?????????????????????????????????? | | ?????????????????????????????????? | | ?????????????????????????????????? | | ?????????????????????????????????? | | ???????##????????????????????????? | | ??????## ####????????????????????? | | ?????## ########?????????????? | | ?????# # ??????????????? | | ????## # # ???????????????? | | ????# # # #????????????????? | | ???## = #?????????????????? | | ???# #??????????????????? | | ???# M #???????????????????? | | ???# #????????????????????? | | ??????# #?????????????????????? | | ??????# #?????????????????????? | | ??????## t#?????????????????????? | | ??????#;; ##?????????????????????? | | ??????###@#??????????????????????? | | ????????# #??????????????????????? | | ????????###??????????????????????? | | ?????????????????????????????????? | | ?????????????????????????????????? | | ?????????????????????????????????? | | ?????????????????????????????????? | | ?????????????????????????????????? | | ?????????????????????????????????? | | ?????????????????????????????????? | | ?????????????????????????????????? | | ?????????????????????????????????? | | ?????????????????????????????????? | | ?????????????????????????????????? | | ?????????????????????????????????? | | ?????????????????????????????????? | | ?????????????????????????????????? | | ?????????????????????????????????? | | ?????????????????????????????????? | | ?????????????????????????????????? | | ?????????????????????????????????? | | ?????????????????????????????????? | | ?????????????????????????????????? | | ?????????????????????????????????? | | ?????????????????????????????????? | +----------------------------------------------------+ Best States ------------- Heat Dissipation 28 Energy Generation 15 Energy Capacity 265 Matter Stores 300 Matter Capacity 300 Sight Range 16 Terrain Scan Density 10 Armor Coverage 375 Weapon Cycling 25 Phase Shifting 5 Evasion (%) 45 Armor Integrity Analysis 33 Recoil Reduction 2 Item Schematics ----------------- None Robot Schematics ------------------ None Fabricated ------------ Nothing Alien Tech Used ----------------- None Achievements -------------- None Challenges ------------ None Game ------ Seed AluminumRiotNegator Manual? 0 Play Time 00:25:34 Cumulative 194.9 hours Start 2021.06.25 @ 19:43:02 End 2021.06.25 @ 20:08:18 Sessions 1 Manual Loads 0 Difficulty Rogue Special Mode None Game No. 245 Rogue 158 Adventurer 87 Explorer 0 Win Type - Total 4 Types 3/0/0/1/0/0/0/0/0 Lore% 67 Gallery% 76 Achievement% 62 Wizard Run 0 Options --------- ASCII 0 Keyboard 1 Movement Numpad Keybinds 0 Fullscreen 1 Font 18/Smallcaps Map View 76x50 Tactical HUD 1 Map Filters NONE Filters NONE Steam 1 RUN: 06c507a6-e819-4f4d-ae86-78316b39cbf4